[Event "Titled Tuesday Blitz March 28 Late 2023"]
[White "Flores, Diego"]
[Black "Adan Bermudez, Sergio"]
[WhiteFideId "108049"]
[BlackFideId "2292726"]
[WhiteElo "2606"]
[BlackElo "2292"]
[Result "1/2-1/2"]
[Round "09"]
[TimeControl "180+2"]
[Date "2023.03.28"]
[WhiteClock "0:00:19"]
[BlackClock "0:00:25"]

1. Nf3 {[%clk 0:03:00]}  d6 {[%clk 0:02:56]} 2. d4 {[%clk 0:02:58]}  g6 {[%clk 0:02:54]} 3. c4 {[%clk 0:02:57]}  Bg7 {[%clk 0:02:54]} 4. Nc3 {[%clk 0:02:57]}  c5 {[%clk 0:02:55]} 5. dxc5 {[%clk 0:02:52]}  Bxc3+ {[%clk 0:02:55]} 6. bxc3 {[%clk 0:02:52]}  dxc5 {[%clk 0:02:56]} 7. Qc2 {[%clk 0:02:39]}  Nf6 {[%clk 0:02:53]} 8. e4 {[%clk 0:02:36]}  Qa5 {[%clk 0:02:53]} 9. Be2 {[%clk 0:02:05]}  Nxe4 {[%clk 0:02:43]} 10. O-O {[%clk 0:02:05]}  Bf5 {[%clk 0:02:37]} 11. Bd3 {[%clk 0:00:59]}  Qxc3 {[%clk 0:02:29]} 12. Bb2 {[%clk 0:00:56]}  Qxc2 {[%clk 0:02:26]} 13. Bxc2 {[%clk 0:00:57]}  O-O {[%clk 0:02:14]} 14. Rfe1 {[%clk 0:00:54]}  Nd6 {[%clk 0:02:09]} 15. Bxf5 {[%clk 0:00:52]}  Nxf5 {[%clk 0:02:09]} 16. g4 {[%clk 0:00:52]}  Nd4 {[%clk 0:02:06]} 17. Bxd4 {[%clk 0:00:41]}  cxd4 {[%clk 0:02:05]} 18. Rxe7 {[%clk 0:00:42]}  Nc6 {[%clk 0:02:02]} 19. Rxb7 {[%clk 0:00:42]}  Rab8 {[%clk 0:02:01]} 20. Rab1 {[%clk 0:00:36]}  Rxb7 {[%clk 0:01:52]} 21. Rxb7 {[%clk 0:00:37]}  Rd8 {[%clk 0:01:52]} 22. Kf1 {[%clk 0:00:35]}  d3 {[%clk 0:01:44]} 23. Nd2 {[%clk 0:00:32]}  Ne5 {[%clk 0:01:40]} 24. f3 {[%clk 0:00:28]}  Nxf3 {[%clk 0:01:26]} 25. Nxf3 {[%clk 0:00:26]}  d2 {[%clk 0:01:27]} 26. Nxd2 {[%clk 0:00:27]}  Rxd2 {[%clk 0:01:28]} 27. Rxa7 {[%clk 0:00:27]}  Rxh2 {[%clk 0:01:28]} 28. a4 {[%clk 0:00:24]}  Rc2 {[%clk 0:01:28]} 29. Rc7 {[%clk 0:00:25]}  Ra2 {[%clk 0:01:21]} 30. Ra7 {[%clk 0:00:24]}  Kg7 {[%clk 0:01:18]} 31. g5 {[%clk 0:00:24]}  Rc2 {[%clk 0:01:15]} 32. Rc7 {[%clk 0:00:23]}  Ra2 {[%clk 0:01:14]} 33. Ra7 {[%clk 0:00:24]}  h6 {[%clk 0:01:03]} 34. gxh6+ {[%clk 0:00:23]}  Kxh6 {[%clk 0:01:04]} 35. Rxf7 {[%clk 0:00:22]}  Rxa4 {[%clk 0:01:04]} 36. Rf4 {[%clk 0:00:22]}  g5 {[%clk 0:01:02]} 37. Rd4 {[%clk 0:00:22]}  Kh5 {[%clk 0:01:02]} 38. Kg2 {[%clk 0:00:22]}  Ra2+ {[%clk 0:01:01]} 39. Kg3 {[%clk 0:00:23]}  Ra3+ {[%clk 0:01:01]} 40. Kg2 {[%clk 0:00:23]}  Rc3 {[%clk 0:00:59]} 41. Re4 {[%clk 0:00:23]}  g4 {[%clk 0:00:59]} 42. Rd4 {[%clk 0:00:23]}  Kh4 {[%clk 0:00:59]} 43. Rd2 {[%clk 0:00:15]}  Rxc4 {[%clk 0:00:59]} 44. Ra2 {[%clk 0:00:16]}  Rf4 {[%clk 0:00:57]} 45. Rb2 {[%clk 0:00:15]}  Rd4 {[%clk 0:00:55]} 46. Ra2 {[%clk 0:00:15]}  Rd3 {[%clk 0:00:52]} 47. Rb2 {[%clk 0:00:15]}  Rg3+ {[%clk 0:00:50]} 48. Kh2 {[%clk 0:00:15]}  Rf3 {[%clk 0:00:44]} 49. Kg2 {[%clk 0:00:15]}  Rf4 {[%clk 0:00:45]} 50. Ra2 {[%clk 0:00:15]}  Rd4 {[%clk 0:00:42]} 51. Rb2 {[%clk 0:00:15]}  Rd1 {[%clk 0:00:41]} 52. Ra2 {[%clk 0:00:15]}  Rd3 {[%clk 0:00:41]} 53. Rb2 {[%clk 0:00:15]}  Rd4 {[%clk 0:00:38]} 54. Ra2 {[%clk 0:00:15]}  Kg5 {[%clk 0:00:38]} 55. Rb2 {[%clk 0:00:16]}  Kf4 {[%clk 0:00:39]} 56. Ra2 {[%clk 0:00:16]}  Rd3 {[%clk 0:00:36]} 57. Ra4+ {[%clk 0:00:16]}  Kg5 {[%clk 0:00:36]} 58. Ra2 {[%clk 0:00:17]}  Rd4 {[%clk 0:00:33]} 59. Rb2 {[%clk 0:00:17]}  Kf4 {[%clk 0:00:33]} 60. Ra2 {[%clk 0:00:17]}  Rc4 {[%clk 0:00:33]} 61. Rb2 {[%clk 0:00:18]}  g3 {[%clk 0:00:29]} 62. Ra2 {[%clk 0:00:17]}  Kg4 {[%clk 0:00:30]} 63. Rb2 {[%clk 0:00:17]}  Rf4 {[%clk 0:00:28]} 64. Ra2 {[%clk 0:00:17]}  Re4 {[%clk 0:00:26]} 65. Rb2 {[%clk 0:00:18]}  Kf4 {[%clk 0:00:25]} 66. Ra2 {[%clk 0:00:18]}  Kg4 {[%clk 0:00:23]} 67. Rb2 {[%clk 0:00:18]}  Rf4 {[%clk 0:00:24]} 68. Ra2 {[%clk 0:00:18]}  Rf2+ {[%clk 0:00:24]} 69. Rxf2 {[%clk 0:00:18]}  gxf2 {[%clk 0:00:25]} 70. Kxf2 {[%clk 0:00:19]} 1/2-1/2


[Site "https://www.chess.com"]

[Event "Titled Tuesday Blitz March 28 Late 2023"]
[White "Adewumi, Tanitoluwa"]
[Black "Grebeniuk, Semen"]
[WhiteFideId "30966396"]
[BlackFideId "14117509"]
[WhiteElo "2745"]
[BlackElo "2266"]
[Result "0-1"]
[Round "09"]
[TimeControl "180+2"]
[Date "2023.03.28"]
[WhiteClock "0:00:14"]
[BlackClock "0:00:21"]

1. e4 {[%clk 0:02:51]}  c5 {[%clk 0:03:00]} 2. Nf3 {[%clk 0:02:51]}  Nc6 {[%clk 0:03:00]} 3. Bb5 {[%clk 0:02:51]}  e6 {[%clk 0:03:01]} 4. Bxc6 {[%clk 0:02:50]}  bxc6 {[%clk 0:03:02]} 5. b3 {[%clk 0:02:51]}  d6 {[%clk 0:02:40]} 6. Bb2 {[%clk 0:02:51]}  e5 {[%clk 0:02:40]} 7. O-O {[%clk 0:02:51]}  Bg4 {[%clk 0:02:34]} 8. h3 {[%clk 0:02:49]}  Bh5 {[%clk 0:02:34]} 9. c3 {[%clk 0:02:49]}  Nf6 {[%clk 0:02:32]} 10. d4 {[%clk 0:02:47]}  Nxe4 {[%clk 0:02:16]} 11. Re1 {[%clk 0:02:41]}  d5 {[%clk 0:02:16]} 12. g4 {[%clk 0:02:39]}  Bg6 {[%clk 0:02:11]} 13. Nxe5 {[%clk 0:02:36]}  Qh4 {[%clk 0:02:03]} 14. Qf3 {[%clk 0:02:17]}  O-O-O {[%clk 0:01:54]} 15. Qe2 {[%clk 0:01:49]}  Kb7 {[%clk 0:01:13]} 16. Kg2 {[%clk 0:01:13]}  Bd6 {[%clk 0:01:07]} 17. Nd2 {[%clk 0:01:07]}  Bxe5 {[%clk 0:01:05]} 18. dxe5 {[%clk 0:01:07]}  h5 {[%clk 0:01:05]} 19. Nf3 {[%clk 0:00:55]}  Qe7 {[%clk 0:01:05]} 20. c4 {[%clk 0:00:53]}  hxg4 {[%clk 0:01:02]} 21. hxg4 {[%clk 0:00:53]}  Qe6 {[%clk 0:00:52]} 22. Ng1 {[%clk 0:00:35]}  Rh4 {[%clk 0:00:45]} 23. f3 {[%clk 0:00:33]}  Rdh8 {[%clk 0:00:45]} 24. fxe4 {[%clk 0:00:17]}  Rh2+ {[%clk 0:00:34]} 25. Kg3 {[%clk 0:00:17]}  Rxe2 {[%clk 0:00:32]} 26. Nxe2 {[%clk 0:00:18]}  Bxe4 {[%clk 0:00:31]} 27. cxd5 {[%clk 0:00:17]}  cxd5 {[%clk 0:00:31]} 28. Nf4 {[%clk 0:00:15]}  Qh6 {[%clk 0:00:27]} 29. Nh5 {[%clk 0:00:14]}  Qd2 {[%clk 0:00:25]} 30. Ba3 {[%clk 0:00:13]}  g6 {[%clk 0:00:24]} 31. Rad1 {[%clk 0:00:13]}  Qxa2 {[%clk 0:00:24]} 32. Ra1 {[%clk 0:00:13]}  Qg2+ {[%clk 0:00:23]} 33. Kf4 {[%clk 0:00:13]}  gxh5 {[%clk 0:00:23]} 34. Rg1 {[%clk 0:00:13]}  Qf3+ {[%clk 0:00:24]} 35. Kg5 {[%clk 0:00:14]}  hxg4 {[%clk 0:00:22]} 36. Bxc5 {[%clk 0:00:14]}  Qf5# {[%clk 0:00:21]} 0-1


[Site "https://www.chess.com"]

[Event "Titled Tuesday Blitz March 28 Late 2023"]
[White "Sreyas Payyappat"]
[Black "Javakhadze, Zurab"]
[WhiteFideId "46674969"]
[BlackFideId "13603647"]
[WhiteElo "2083"]
[BlackElo "2381"]
[Result "0-1"]
[Round "09"]
[TimeControl "180+2"]
[Date "2023.03.28"]
[WhiteClock "0:00:18"]
[BlackClock "0:00:09"]

1. e4 {[%clk 0:02:57]}  e5 {[%clk 0:02:59]} 2. Nf3 {[%clk 0:02:57]}  Nc6 {[%clk 0:02:59]} 3. Bc4 {[%clk 0:02:56]}  Nf6 {[%clk 0:03:00]} 4. d4 {[%clk 0:02:55]}  exd4 {[%clk 0:02:58]} 5. e5 {[%clk 0:02:56]}  d5 {[%clk 0:02:58]} 6. Bb5 {[%clk 0:02:57]}  Ne4 {[%clk 0:02:59]} 7. Nxd4 {[%clk 0:02:57]}  Bd7 {[%clk 0:02:59]} 8. Bxc6 {[%clk 0:02:57]}  bxc6 {[%clk 0:02:59]} 9. c3 {[%clk 0:02:58]}  Be7 {[%clk 0:02:55]} 10. Be3 {[%clk 0:02:57]}  O-O {[%clk 0:02:53]} 11. O-O {[%clk 0:02:56]}  f6 {[%clk 0:02:43]} 12. e6 {[%clk 0:02:53]}  Be8 {[%clk 0:02:42]} 13. f3 {[%clk 0:02:52]}  Nd6 {[%clk 0:02:39]} 14. Nd2 {[%clk 0:02:40]}  Qc8 {[%clk 0:02:34]} 15. N2b3 {[%clk 0:02:27]}  Nc4 {[%clk 0:02:32]} 16. Re1 {[%clk 0:02:20]}  Nxe3 {[%clk 0:02:02]} 17. Rxe3 {[%clk 0:02:18]}  f5 {[%clk 0:02:03]} 18. Qc2 {[%clk 0:02:13]}  g6 {[%clk 0:02:01]} 19. Rae1 {[%clk 0:01:53]}  c5 {[%clk 0:01:57]} 20. Ne2 {[%clk 0:01:52]}  f4 {[%clk 0:01:40]} 21. Re5 {[%clk 0:01:50]}  Bd6 {[%clk 0:01:12]} 22. Rxd5 {[%clk 0:01:45]}  Qxe6 {[%clk 0:01:10]} 23. Qd2 {[%clk 0:01:45]}  Bc6 {[%clk 0:00:39]} 24. Rd3 {[%clk 0:01:31]}  c4 {[%clk 0:00:38]} 25. Ned4 {[%clk 0:01:01]}  Qd7 {[%clk 0:00:38]} 26. Nxc6 {[%clk 0:00:52]}  Qxc6 {[%clk 0:00:34]} 27. Nd4 {[%clk 0:00:50]}  Qb6 {[%clk 0:00:21]} 28. Re6 {[%clk 0:00:46]}  cxd3 {[%clk 0:00:20]} 29. Qxd3 {[%clk 0:00:46]}  Rae8 {[%clk 0:00:19]} 30. Rxg6+ {[%clk 0:00:43]}  Kh8 {[%clk 0:00:18]} 31. Rh6 {[%clk 0:00:40]}  Rf7 {[%clk 0:00:17]} 32. Qg6 {[%clk 0:00:18]}  Qxb2 {[%clk 0:00:09]} 33. Qxf7 {[%clk 0:00:18]}  Re1# {[%clk 0:00:09]} 0-1


[Site "https://www.chess.com"]

[Event "Titled Tuesday Blitz March 28 Late 2023"]
[White "Goltsev, Dmitry"]
[Black "Hirneise, Jens"]
[WhiteFideId "24176710"]
[BlackFideId "24614734"]
[WhiteElo "2336"]
[BlackElo "2345"]
[Result "1-0"]
[Round "09"]
[TimeControl "180+2"]
[Date "2023.03.28"]
[WhiteClock "0:01:08"]
[BlackClock "0:00:03"]

1. e4 {[%clk 0:03:00]}  c5 {[%clk 0:02:57]} 2. Nf3 {[%clk 0:02:59]}  a6 {[%clk 0:02:55]} 3. c4 {[%clk 0:02:57]}  e6 {[%clk 0:02:53]} 4. d4 {[%clk 0:02:57]}  cxd4 {[%clk 0:02:54]} 5. Nxd4 {[%clk 0:02:57]}  Qc7 {[%clk 0:02:47]} 6. Nc3 {[%clk 0:02:57]}  Nc6 {[%clk 0:02:47]} 7. Be3 {[%clk 0:02:56]}  Nf6 {[%clk 0:02:46]} 8. a3 {[%clk 0:02:55]}  b6 {[%clk 0:02:33]} 9. Rc1 {[%clk 0:02:53]}  Qb8 {[%clk 0:02:24]} 10. Nxc6 {[%clk 0:02:46]}  dxc6 {[%clk 0:02:22]} 11. Na4 {[%clk 0:02:40]}  c5 {[%clk 0:02:10]} 12. Qb3 {[%clk 0:02:34]}  Nd7 {[%clk 0:02:02]} 13. Be2 {[%clk 0:02:32]}  Bd6 {[%clk 0:02:01]} 14. g3 {[%clk 0:02:31]}  Bb7 {[%clk 0:01:53]} 15. f3 {[%clk 0:02:27]}  Bc6 {[%clk 0:01:49]} 16. Nc3 {[%clk 0:02:26]}  O-O {[%clk 0:01:48]} 17. Rd1 {[%clk 0:02:22]}  Be5 {[%clk 0:01:43]} 18. Kf2 {[%clk 0:02:21]}  Rd8 {[%clk 0:01:42]} 19. Rd2 {[%clk 0:02:21]}  Qc7 {[%clk 0:01:41]} 20. Rhd1 {[%clk 0:02:20]}  Nf6 {[%clk 0:01:36]} 21. Rxd8+ {[%clk 0:02:03]}  Rxd8 {[%clk 0:01:37]} 22. Rxd8+ {[%clk 0:02:03]}  Qxd8 {[%clk 0:01:36]} 23. Qd1 {[%clk 0:02:03]}  Bd4 {[%clk 0:01:25]} 24. b4 {[%clk 0:01:56]}  e5 {[%clk 0:01:14]} 25. Nd5 {[%clk 0:01:52]}  Bxd5 {[%clk 0:01:11]} 26. cxd5 {[%clk 0:01:51]}  a5 {[%clk 0:01:06]} 27. Bxd4 {[%clk 0:01:46]}  cxd4 {[%clk 0:00:56]} 28. Qc2 {[%clk 0:01:42]}  axb4 {[%clk 0:00:54]} 29. axb4 {[%clk 0:01:42]}  Ne8 {[%clk 0:00:52]} 30. Qc6 {[%clk 0:01:35]}  Nd6 {[%clk 0:00:51]} 31. Bd3 {[%clk 0:01:34]}  h5 {[%clk 0:00:47]} 32. Ke2 {[%clk 0:01:32]}  h4 {[%clk 0:00:46]} 33. f4 {[%clk 0:01:27]}  hxg3 {[%clk 0:00:44]} 34. hxg3 {[%clk 0:01:28]}  Qe7 {[%clk 0:00:25]} 35. Qxb6 {[%clk 0:01:20]}  exf4 {[%clk 0:00:22]} 36. gxf4 {[%clk 0:01:21]}  Nxe4 {[%clk 0:00:19]} 37. Qb8+ {[%clk 0:01:20]}  Kh7 {[%clk 0:00:17]} 38. Qe5 {[%clk 0:01:21]}  Qxb4 {[%clk 0:00:09]} 39. Qxe4+ {[%clk 0:01:18]}  g6 {[%clk 0:00:10]} 40. f5 {[%clk 0:01:14]}  Kg7 {[%clk 0:00:07]} 41. Qe5+ {[%clk 0:01:13]}  f6 {[%clk 0:00:07]} 42. Qc7+ {[%clk 0:01:12]}  Kh6 {[%clk 0:00:06]} 43. fxg6 {[%clk 0:01:10]}  Qe7+ {[%clk 0:00:03]} 44. Qxe7 {[%clk 0:01:08]} 1-0


[Site "https://www.chess.com"]

[Event "Titled Tuesday Blitz March 28 Late 2023"]
[White "Florescu, Codrut-Constantin"]
[Black "Bochnicka, Vladimir"]
[WhiteFideId "1202200"]
[BlackFideId "14943450"]
[WhiteElo "2191"]
[BlackElo "2094"]
[Result "1-0"]
[Round "09"]
[TimeControl "180+2"]
[Date "2023.03.28"]
[WhiteClock "0:01:09"]
[BlackClock "0:01:02"]

1. e4 {[%clk 0:03:00]}  c5 {[%clk 0:02:59]} 2. Nf3 {[%clk 0:03:00]}  Nc6 {[%clk 0:03:00]} 3. d4 {[%clk 0:03:00]}  cxd4 {[%clk 0:03:01]} 4. Nxd4 {[%clk 0:03:00]}  e5 {[%clk 0:03:02]} 5. Nb5 {[%clk 0:03:00]}  d6 {[%clk 0:03:02]} 6. Bc4 {[%clk 0:02:59]}  Be7 {[%clk 0:03:00]} 7. O-O {[%clk 0:02:59]}  Nf6 {[%clk 0:03:00]} 8. Bg5 {[%clk 0:02:57]}  O-O {[%clk 0:02:29]} 9. Bxf6 {[%clk 0:02:52]}  Bxf6 {[%clk 0:02:29]} 10. Nxd6 {[%clk 0:02:43]}  Nd4 {[%clk 0:02:17]} 11. Nxf7 {[%clk 0:02:33]}  Rxf7 {[%clk 0:02:16]} 12. Bxf7+ {[%clk 0:02:30]}  Kxf7 {[%clk 0:02:15]} 13. c3 {[%clk 0:02:29]}  Nc6 {[%clk 0:02:15]} 14. Qxd8 {[%clk 0:02:25]}  Nxd8 {[%clk 0:02:15]} 15. Nd2 {[%clk 0:02:25]}  Be6 {[%clk 0:02:15]} 16. Nb3 {[%clk 0:02:25]}  Be7 {[%clk 0:02:15]} 17. Rad1 {[%clk 0:02:23]}  Nc6 {[%clk 0:02:11]} 18. g3 {[%clk 0:02:22]}  a5 {[%clk 0:02:11]} 19. f4 {[%clk 0:02:21]}  Kg8 {[%clk 0:02:04]} 20. fxe5 {[%clk 0:02:17]}  Nxe5 {[%clk 0:02:04]} 21. Nd4 {[%clk 0:02:17]}  Bxa2 {[%clk 0:01:59]} 22. b3 {[%clk 0:02:14]}  a4 {[%clk 0:01:58]} 23. bxa4 {[%clk 0:02:13]}  Rxa4 {[%clk 0:01:56]} 24. Ra1 {[%clk 0:02:12]}  Bc5 {[%clk 0:01:49]} 25. Rf2 {[%clk 0:02:07]}  Bb3 {[%clk 0:01:46]} 26. Rxa4 {[%clk 0:02:06]}  Bxa4 {[%clk 0:01:45]} 27. Rf5 {[%clk 0:02:01]}  Bd6 {[%clk 0:01:34]} 28. Kg2 {[%clk 0:01:56]}  Bd7 {[%clk 0:01:33]} 29. Rf1 {[%clk 0:01:55]}  Nf7 {[%clk 0:01:30]} 30. Ra1 {[%clk 0:01:52]}  Kf8 {[%clk 0:01:26]} 31. Ra7 {[%clk 0:01:46]}  Nd8 {[%clk 0:01:26]} 32. Ra8 {[%clk 0:01:39]}  Ke7 {[%clk 0:01:26]} 33. Nf5+ {[%clk 0:01:38]}  Bxf5 {[%clk 0:01:25]} 34. exf5 {[%clk 0:01:39]}  Be5 {[%clk 0:01:25]} 35. c4 {[%clk 0:01:35]}  h6 {[%clk 0:01:24]} 36. g4 {[%clk 0:01:35]}  Nf7 {[%clk 0:01:21]} 37. Ra7 {[%clk 0:01:28]}  Nd8 {[%clk 0:01:21]} 38. h4 {[%clk 0:01:27]}  Kd6 {[%clk 0:01:21]} 39. Kf3 {[%clk 0:01:26]}  Kc5 {[%clk 0:01:15]} 40. Ra5+ {[%clk 0:01:19]}  Kd4 {[%clk 0:01:02]} 41. Rd5+ {[%clk 0:01:19]}  Kxc4 {[%clk 0:01:03]} 42. Rxe5 {[%clk 0:01:16]}  b5 {[%clk 0:01:04]} 43. Re7 {[%clk 0:01:14]}  b4 {[%clk 0:01:02]} 44. Rxg7 {[%clk 0:01:09]}  b3 {[%clk 0:01:02]} 45. Rc7+ {[%clk 0:01:09]} 1-0


[Site "https://www.chess.com"]

[Event "Titled Tuesday Blitz March 28 Late 2023"]
[White "Vafin, Ayrat"]
[Black "Piesik, Piotr"]
[WhiteFideId "4146530"]
[BlackFideId "1136194"]
[WhiteElo "2317"]
[BlackElo "2311"]
[Result "1-0"]
[Round "09"]
[TimeControl "180+2"]
[Date "2023.03.28"]
[WhiteClock "0:00:14"]
[BlackClock "0:00:01"]

1. Nf3 {[%clk 0:03:00]}  g6 {[%clk 0:02:46]} 2. g3 {[%clk 0:03:00]}  Bg7 {[%clk 0:02:46]} 3. d4 {[%clk 0:03:01]}  d5 {[%clk 0:02:45]} 4. Bg2 {[%clk 0:03:01]}  Nf6 {[%clk 0:02:45]} 5. O-O {[%clk 0:03:01]}  O-O {[%clk 0:02:46]} 6. Nbd2 {[%clk 0:03:01]}  c6 {[%clk 0:02:41]} 7. Re1 {[%clk 0:03:01]}  Bf5 {[%clk 0:02:40]} 8. c3 {[%clk 0:03:00]}  Nbd7 {[%clk 0:02:38]} 9. Ng5 {[%clk 0:02:59]}  h6 {[%clk 0:02:37]} 10. Ngf3 {[%clk 0:02:51]}  g5 {[%clk 0:02:34]} 11. Qb3 {[%clk 0:02:41]}  Qc7 {[%clk 0:02:29]} 12. Nf1 {[%clk 0:02:39]}  Ne4 {[%clk 0:02:25]} 13. N3d2 {[%clk 0:02:39]}  Bg6 {[%clk 0:02:06]} 14. Nxe4 {[%clk 0:02:38]}  dxe4 {[%clk 0:02:06]} 15. f3 {[%clk 0:02:34]}  e5 {[%clk 0:02:02]} 16. Be3 {[%clk 0:02:23]}  Rfe8 {[%clk 0:01:50]} 17. d5 {[%clk 0:02:18]}  cxd5 {[%clk 0:01:43]} 18. Qxd5 {[%clk 0:02:18]}  Nf6 {[%clk 0:01:40]} 19. Qc5 {[%clk 0:02:13]}  Qxc5 {[%clk 0:01:39]} 20. Bxc5 {[%clk 0:02:13]}  b6 {[%clk 0:01:39]} 21. Ba3 {[%clk 0:02:07]}  Rad8 {[%clk 0:01:38]} 22. Rad1 {[%clk 0:02:06]}  h5 {[%clk 0:01:27]} 23. Ne3 {[%clk 0:02:02]}  g4 {[%clk 0:01:22]} 24. fxg4 {[%clk 0:01:56]}  hxg4 {[%clk 0:01:20]} 25. Rxd8 {[%clk 0:01:21]}  Rxd8 {[%clk 0:01:21]} 26. Rd1 {[%clk 0:01:22]}  Rxd1+ {[%clk 0:01:18]} 27. Nxd1 {[%clk 0:01:23]}  Nd5 {[%clk 0:01:13]} 28. c4 {[%clk 0:01:20]}  Nc7 {[%clk 0:01:11]} 29. b3 {[%clk 0:01:06]}  f5 {[%clk 0:01:06]} 30. e3 {[%clk 0:01:07]}  Kf7 {[%clk 0:01:05]} 31. Nc3 {[%clk 0:01:00]}  Bh6 {[%clk 0:01:03]} 32. Kf2 {[%clk 0:01:00]}  Ke6 {[%clk 0:01:03]} 33. Bc1 {[%clk 0:00:57]}  Be8 {[%clk 0:01:02]} 34. Bd2 {[%clk 0:00:53]}  Bc6 {[%clk 0:00:52]} 35. h3 {[%clk 0:00:53]}  gxh3 {[%clk 0:00:46]} 36. Bxh3 {[%clk 0:00:53]}  Bg5 {[%clk 0:00:43]} 37. Ke2 {[%clk 0:00:50]}  Kf6 {[%clk 0:00:38]} 38. Bc1 {[%clk 0:00:43]}  Ne6 {[%clk 0:00:33]} 39. Ba3 {[%clk 0:00:38]}  Bh6 {[%clk 0:00:31]} 40. Kf2 {[%clk 0:00:34]}  Ng5 {[%clk 0:00:21]} 41. Bg2 {[%clk 0:00:34]}  Ke6 {[%clk 0:00:17]} 42. Bc1 {[%clk 0:00:28]}  Be8 {[%clk 0:00:16]} 43. g4 {[%clk 0:00:24]}  fxg4 {[%clk 0:00:03]} 44. Nxe4 {[%clk 0:00:23]}  Nxe4+ {[%clk 0:00:04]} 45. Bxe4 {[%clk 0:00:24]}  Bf8 {[%clk 0:00:03]} 46. Kg3 {[%clk 0:00:23]}  Bh5 {[%clk 0:00:02]} 47. Bb7 {[%clk 0:00:19]}  Be7 {[%clk 0:00:02]} 48. Bc8+ {[%clk 0:00:18]}  Kf6 {[%clk 0:00:02]} 49. Bxg4 {[%clk 0:00:18]}  Bg6 {[%clk 0:00:02]} 50. Bd7 {[%clk 0:00:17]}  Bb1 {[%clk 0:00:02]} 51. a3 {[%clk 0:00:16]}  Ba2 {[%clk 0:00:02]} 52. Ba4 {[%clk 0:00:16]}  Bc5 {[%clk 0:00:02]} 53. Kf3 {[%clk 0:00:16]}  Bb1 {[%clk 0:00:01]} 54. b4 {[%clk 0:00:16]}  Bd6 {[%clk 0:00:01]} 55. Bc6 {[%clk 0:00:14]} 1-0


[Site "https://www.chess.com"]

[Event "Titled Tuesday Blitz March 28 Late 2023"]
[White "Gerbelli Neto, Eduardo"]
[Black "Khumalo, Keith"]
[WhiteFideId "2103281"]
[BlackFideId "14319470"]
[WhiteElo "2178"]
[BlackElo "2056"]
[Result "0-1"]
[Round "09"]
[TimeControl "180+2"]
[Date "2023.03.28"]
[WhiteClock "0:00:03"]
[BlackClock "0:01:31"]

1. e4 {[%clk 0:02:52]}  c5 {[%clk 0:02:59]} 2. Nc3 {[%clk 0:02:52]}  g6 {[%clk 0:02:59]} 3. f4 {[%clk 0:02:52]}  Bg7 {[%clk 0:02:58]} 4. Nf3 {[%clk 0:02:53]}  Nc6 {[%clk 0:02:59]} 5. Bc4 {[%clk 0:02:53]}  e6 {[%clk 0:02:59]} 6. f5 {[%clk 0:02:53]}  Nge7 {[%clk 0:02:57]} 7. fxe6 {[%clk 0:02:53]}  dxe6 {[%clk 0:02:56]} 8. d3 {[%clk 0:02:54]}  a6 {[%clk 0:02:54]} 9. O-O {[%clk 0:02:54]}  b5 {[%clk 0:02:55]} 10. Bb3 {[%clk 0:02:54]}  O-O {[%clk 0:02:55]} 11. Qe1 {[%clk 0:02:54]}  Bb7 {[%clk 0:02:49]} 12. Qh4 {[%clk 0:02:54]}  Nd4 {[%clk 0:02:46]} 13. Bg5 {[%clk 0:02:50]}  f6 {[%clk 0:02:46]} 14. Be3 {[%clk 0:02:36]}  Kh8 {[%clk 0:02:37]} 15. Rf2 {[%clk 0:02:00]}  e5 {[%clk 0:02:33]} 16. Bxd4 {[%clk 0:01:36]}  exd4 {[%clk 0:02:26]} 17. Ne2 {[%clk 0:01:36]}  Qd6 {[%clk 0:02:21]} 18. Raf1 {[%clk 0:01:29]}  Nc6 {[%clk 0:02:14]} 19. Nf4 {[%clk 0:01:26]}  f5 {[%clk 0:02:11]} 20. Ng5 {[%clk 0:01:25]}  h6 {[%clk 0:02:10]} 21. Nf7+ {[%clk 0:01:18]}  Rxf7 {[%clk 0:02:11]} 22. Bxf7 {[%clk 0:01:19]}  g5 {[%clk 0:02:11]} 23. Qh5 {[%clk 0:01:04]}  gxf4 {[%clk 0:02:11]} 24. Rxf4 {[%clk 0:01:04]}  Ne7 {[%clk 0:02:08]} 25. exf5 {[%clk 0:00:55]}  Qf6 {[%clk 0:02:07]} 26. Be6 {[%clk 0:00:42]}  Nd5 {[%clk 0:02:00]} 27. Rg4 {[%clk 0:00:40]}  Qe5 {[%clk 0:01:51]} 28. Rg6 {[%clk 0:00:33]}  Qe3+ {[%clk 0:01:50]} 29. Kh1 {[%clk 0:00:32]}  Nf6 {[%clk 0:01:51]} 30. Qh4 {[%clk 0:00:26]}  Rf8 {[%clk 0:01:51]} 31. h3 {[%clk 0:00:19]}  Nh7 {[%clk 0:01:46]} 32. Re1 {[%clk 0:00:17]}  Qd2 {[%clk 0:01:41]} 33. Qg3 {[%clk 0:00:16]}  Bxg2+ {[%clk 0:01:36]} 34. Kg1 {[%clk 0:00:15]}  Ng5 {[%clk 0:01:32]} 35. Rxg7 {[%clk 0:00:07]}  Nf3+ {[%clk 0:01:29]} 36. Qxf3 {[%clk 0:00:05]}  Bxf3 {[%clk 0:01:30]} 37. Rf1 {[%clk 0:00:05]}  Qe3+ {[%clk 0:01:30]} 38. Kh2 {[%clk 0:00:03]}  Kxg7 {[%clk 0:01:31]} 39. Rg1+ {[%clk 0:00:03]}  Kh8 {[%clk 0:01:31]} 0-1


[Site "https://www.chess.com"]

[Event "Titled Tuesday Blitz March 28 Late 2023"]
[White "Sokac, Marko"]
[Black "Gokerkan, Cem Kaan"]
[WhiteFideId "14531356"]
[BlackFideId "6336760"]
[WhiteElo "2355"]
[BlackElo "2365"]
[Result "1-0"]
[Round "09"]
[TimeControl "180+2"]
[Date "2023.03.28"]
[WhiteClock "0:02:06"]
[BlackClock "0:00:08"]

1. e4 {[%clk 0:03:00]}  e5 {[%clk 0:02:54]} 2. Nc3 {[%clk 0:03:00]}  Nf6 {[%clk 0:02:54]} 3. Bc4 {[%clk 0:03:00]}  Nxe4 {[%clk 0:02:54]} 4. Qh5 {[%clk 0:02:59]}  Nd6 {[%clk 0:02:54]} 5. Bb3 {[%clk 0:02:59]}  Nc6 {[%clk 0:02:52]} 6. Nb5 {[%clk 0:02:59]}  g6 {[%clk 0:01:39]} 7. Qf3 {[%clk 0:03:00]}  f5 {[%clk 0:01:28]} 8. Qd5 {[%clk 0:03:00]}  Qg5 {[%clk 0:01:03]} 9. Nxc7+ {[%clk 0:03:00]}  Kd8 {[%clk 0:01:03]} 10. Nxa8 {[%clk 0:02:57]}  e4 {[%clk 0:00:56]} 11. Ne2 {[%clk 0:02:53]}  Qxg2 {[%clk 0:00:54]} 12. Rg1 {[%clk 0:02:54]}  Qxh2 {[%clk 0:00:54]} 13. d4 {[%clk 0:02:52]}  Be7 {[%clk 0:00:40]} 14. Bf4 {[%clk 0:02:51]}  Qh4 {[%clk 0:00:18]} 15. Bxd6 {[%clk 0:02:50]}  Qf6 {[%clk 0:00:18]} 16. Bc7+ {[%clk 0:02:37]}  Ke8 {[%clk 0:00:19]} 17. Be5 {[%clk 0:02:38]}  Nxe5 {[%clk 0:00:19]} 18. dxe5 {[%clk 0:02:33]}  Qh4 {[%clk 0:00:13]} 19. Nc7+ {[%clk 0:02:29]}  Kd8 {[%clk 0:00:13]} 20. Nb5 {[%clk 0:02:28]}  e3 {[%clk 0:00:10]} 21. O-O-O {[%clk 0:02:14]}  exf2 {[%clk 0:00:10]} 22. Rgf1 {[%clk 0:02:12]}  Re8 {[%clk 0:00:08]} 23. e6 {[%clk 0:02:06]}  Bg5+ {[%clk 0:00:08]} 24. Kb1 {[%clk 0:02:06]} 1-0


[Site "https://www.chess.com"]